[Event "*** Titled Tuesday 3|2 Blitz"]
[Site "Chess.com"]
[Date "2015.05.05"]
[Round "6"]
[White "Rijeka1999"]
[Black "cassoulet"]
[Result "0-1"]
[WhiteElo "2208"]
[BlackElo "2222"]
[TimeControl "180+2"]
[EndTime "12:16:25 PDT"]
[Termination "cassoulet won by resignation"]

1. e4 {[%clk 0:02:59]} 1... c5 {[%clk 0:03:00.4]} 2. Nf3 {[%clk 0:02:56.7]} 2...
Nc6 {[%clk 0:03:01]} 3. c3 {[%clk 0:02:55.9]} 3... Nf6 {[%clk 0:03:00.3]} 4. e5
{[%clk 0:02:56.7]} 4... Nd5 {[%clk 0:03:01.2]} 5. Bc4 {[%clk 0:02:58.6]} 5...
Nb6 {[%clk 0:03:01.6]} 6. Bb3 {[%clk 0:02:59.1]} 6... c4 {[%clk 0:03:03]} 7. Bc2
{[%clk 0:02:59.7]} 7... Qc7 {[%clk 0:03:04.6]} 8. Qe2 {[%clk 0:02:59.4]} 8... g5
{[%clk 0:03:06]} 9. h3 {[%clk 0:02:59.1]} 9... Bg7 {[%clk 0:03:06.5]} 10. O-O
{[%clk 0:02:58.1]} 10... Nxe5 {[%clk 0:03:03.7]} 11. Nxg5 {[%clk 0:02:59]} 11...
h6 {[%clk 0:03:03.6]} 12. Nf3 {[%clk 0:02:52.7]} 12... d5 {[%clk 0:03:04.6]} 13.
d4 {[%clk 0:02:42.8]} 13... cxd3 {[%clk 0:02:52.7]} 14. Bxd3 {[%clk 0:02:42.5]}
14... Bd7 {[%clk 0:02:48.9]} 15. Re1 {[%clk 0:02:39.9]} 15... Nxf3+ {[%clk
0:02:44.2]} 16. Qxf3 {[%clk 0:02:40.1]} 16... e5 {[%clk 0:02:41.3]} 17. Bc2
{[%clk 0:02:14.6]} 17... Be6 {[%clk 0:02:29.4]} 18. Qg3 {[%clk 0:02:07.9]} 18...
Bf6 {[%clk 0:02:29.7]} 19. Qf3 {[%clk 0:02:07.6]} 19... Qe7 {[%clk 0:02:27.6]}
20. a4 {[%clk 0:02:00.8]} 20... Nc4 {[%clk 0:02:26.1]} 21. b3 {[%clk 0:02:00.3]}
21... Nd6 {[%clk 0:02:26.2]} 22. Bb2 {[%clk 0:01:55.3]} 22... O-O-O {[%clk
0:02:24]} 23. Nd2 {[%clk 0:01:52]} 23... e4 {[%clk 0:02:24]} 24. Qe2 {[%clk
0:01:51.8]} 24... Rhg8 {[%clk 0:02:21.3]} 25. Kf1 {[%clk 0:01:40.7]} 25... Nf5
{[%clk 0:02:16.6]} 26. Rac1 {[%clk 0:01:25.5]} 26... Qc7 {[%clk 0:02:15.2]} 27.
g4 {[%clk 0:01:03.5]} 27... Qh2 {[%clk 0:02:11.7]} 28. Qb5 {[%clk 0:00:47.5]}
28... Qxh3+ {[%clk 0:02:05.8]} 29. Ke2 {[%clk 0:00:46.8]} 29... Qxg4+ {[%clk
0:02:01.2]} 30. Kf1 {[%clk 0:00:42.3]} 30... Qh3+ {[%clk 0:01:55.9]} 31. Ke2
{[%clk 0:00:42.8]} 31... Nd4+ {[%clk 0:01:42.6]} 32. cxd4 {[%clk 0:00:41.5]}
32... Bg4+ {[%clk 0:01:43.5]} 33. f3 {[%clk 0:00:21.3]} 33... Bxf3+ {[%clk
0:01:43.8]} 34. Nxf3 {[%clk 0:00:19.4]} 34... Qxf3+ {[%clk 0:01:44]} 35. Kd2
{[%clk 0:00:21]} 35... Bg5+ {[%clk 0:01:45.1]} 0-1

[Event "*** Titled Tuesday 3|2 Blitz"]
[Site "Chess.com"]
[Date "2015.05.05"]
[Round "6"]
[White "Azzaro25"]
[Black "GeorgMeier"]
[Result "0-1"]
[WhiteElo "2347"]
[BlackElo "2722"]
[TimeControl "180+2"]
[EndTime "12:17:20 PDT"]
[Termination "GeorgMeier won by resignation"]

1. e4 {[%clk 0:03:01.9]} 1... e6 {[%clk 0:03:01.2]} 2. d4 {[%clk 0:03:02.8]}
2... d5 {[%clk 0:03:02.2]} 3. Nd2 {[%clk 0:03:02.2]} 3... dxe4 {[%clk
0:03:03.4]} 4. Nxe4 {[%clk 0:03:03.4]} 4... Nd7 {[%clk 0:03:05.3]} 5. Nf3 {[%clk
0:03:04.8]} 5... Ngf6 {[%clk 0:03:07.2]} 6. Nxf6+ {[%clk 0:03:06.4]} 6... Nxf6
{[%clk 0:03:09.1]} 7. Be3 {[%clk 0:03:08]} 7... Bd6 {[%clk 0:03:08.5]} 8. Bd3
{[%clk 0:03:07.9]} 8... O-O {[%clk 0:03:09.6]} 9. Qe2 {[%clk 0:03:08.6]} 9... b6
{[%clk 0:03:10.8]} 10. O-O-O {[%clk 0:03:09.7]} 10... Bb7 {[%clk 0:03:12.3]} 11.
h4 {[%clk 0:03:09.9]} 11... c5 {[%clk 0:03:07.8]} 12. Ne5 {[%clk 0:03:01.3]}
12... Qc7 {[%clk 0:03:03.6]} 13. Bg5 {[%clk 0:02:52.9]} 13... Rfd8 {[%clk
0:03:00]} 14. Ng4 {[%clk 0:02:46.5]} 14... Be7 {[%clk 0:02:54.8]} 15. Nxf6+
{[%clk 0:02:32.1]} 15... Bxf6 {[%clk 0:02:50.7]} 16. Bxf6 {[%clk 0:01:57.9]}
16... Qf4+ {[%clk 0:02:51.1]} 17. Kb1 {[%clk 0:01:58.7]} 17... Qxf6 {[%clk
0:02:49.6]} 18. dxc5 {[%clk 0:01:26.3]} 18... Bxg2 {[%clk 0:02:47.4]} 19. cxb6
{[%clk 0:01:07.2]} 19... Bxh1 {[%clk 0:02:46.7]} 20. Rxh1 {[%clk 0:01:06.6]}
20... axb6 {[%clk 0:02:47.6]} 21. h5 {[%clk 0:01:08.2]} 21... Rd4 {[%clk
0:02:42.5]} 22. h6 {[%clk 0:01:02.7]} 22... g6 {[%clk 0:02:41.5]} 23. a3 {[%clk
0:01:04.2]} 23... Rad8 {[%clk 0:02:24.8]} 24. Rh3 {[%clk 0:00:59.4]} 24... Rf4
{[%clk 0:02:12.6]} 25. f3 {[%clk 0:00:55]} 25... Rfd4 {[%clk 0:02:11.6]} 26. Qe3
{[%clk 0:00:50.6]} 26... R8d6 {[%clk 0:02:05.3]} 27. Rh1 {[%clk 0:00:49.4]}
27... Kf8 {[%clk 0:02:05.5]} 28. Qe2 {[%clk 0:00:48.3]} 28... Ke7 {[%clk
0:02:06.3]} 29. Ka2 {[%clk 0:00:46.3]} 29... Qf4 {[%clk 0:02:07]} 30. Be4 {[%clk
0:00:43.8]} 30... Qe5 {[%clk 0:01:56.4]} 31. Qa6 {[%clk 0:00:39.6]} 31... Qc5
{[%clk 0:01:57.4]} 32. Qb7+ {[%clk 0:00:28]} 32... Rd7 {[%clk 0:01:57.8]} 33.
Qb8 {[%clk 0:00:29.7]} 33... Rd8 {[%clk 0:01:58.4]} 34. Qg3 {[%clk 0:00:23]}
34... Qc4+ {[%clk 0:01:58.1]} 35. b3 {[%clk 0:00:24.2]} 35... Qc5 {[%clk
0:01:56.4]} 36. Rc1 {[%clk 0:00:19.2]} 36... Rd2 {[%clk 0:01:55.7]} 37. Qf4
{[%clk 0:00:18.1]} 37... f5 {[%clk 0:01:31.8]} 38. Qg5+ {[%clk 0:00:19.5]} 38...
Kf7 {[%clk 0:01:32.7]} 39. Qf4 {[%clk 0:00:21]} 39... e5 {[%clk 0:01:26.4]} 40.
Qh4 {[%clk 0:00:21.3]} 40... fxe4 {[%clk 0:01:25.2]} 41. Kb2 {[%clk 0:00:22]}
41... e3 {[%clk 0:01:25.3]} 0-1

[Event "*** Titled Tuesday 3|2 Blitz"]
[Site "Chess.com"]
[Date "2015.05.05"]
[Round "6"]
[White "wonderfultime"]
[Black "Inopov"]
[Result "1-0"]
[WhiteElo "2578"]
[BlackElo "2482"]
[TimeControl "180+2"]
[EndTime "12:17:32 PDT"]
[Termination "wonderfultime won on time"]

1. d4 {[%clk 0:03:01.9]} 1... d5 {[%clk 0:02:59.9]} 2. c4 {[%clk 0:03:02.4]}
2... Bf5 {[%clk 0:02:56.5]} 3. Nc3 {[%clk 0:03:00.7]} 3... e6 {[%clk 0:02:53.5]}
4. Nf3 {[%clk 0:02:25]} 4... Nf6 {[%clk 0:02:53.5]} 5. Qb3 {[%clk 0:02:17.7]}
5... Nc6 {[%clk 0:02:51.1]} 6. cxd5 {[%clk 0:02:15.3]} 6... exd5 {[%clk
0:02:46.4]} 7. Bg5 {[%clk 0:02:12.7]} 7... Na5 {[%clk 0:02:47.3]} 8. Qa4+ {[%clk
0:02:08.3]} 8... c6 {[%clk 0:02:48.9]} 9. e3 {[%clk 0:02:08]} 9... Be7 {[%clk
0:02:35.5]} 10. Qd1 {[%clk 0:01:40.9]} 10... O-O {[%clk 0:02:28.2]} 11. Bd3
{[%clk 0:01:41.5]} 11... Bxd3 {[%clk 0:02:00.6]} 12. Qxd3 {[%clk 0:01:43.4]}
12... Nc4 {[%clk 0:02:01.9]} 13. b3 {[%clk 0:01:37.4]} 13... Nd6 {[%clk
0:02:01.7]} 14. Bxf6 {[%clk 0:01:36.7]} 14... Bxf6 {[%clk 0:02:01.2]} 15. O-O
{[%clk 0:01:38.6]} 15... Re8 {[%clk 0:02:01.5]} 16. Rab1 {[%clk 0:01:39.5]}
16... Qd7 {[%clk 0:01:51.5]} 17. Rfc1 {[%clk 0:01:39.6]} 17... Re6 {[%clk
0:01:43.8]} 18. Na4 {[%clk 0:01:37.5]} 18... Ne4 {[%clk 0:01:37.7]} 19. Nc5
{[%clk 0:01:37.5]} 19... Nxc5 {[%clk 0:01:38.5]} 20. Rxc5 {[%clk 0:01:35.2]}
20... a5 {[%clk 0:01:36.7]} 21. Rc2 {[%clk 0:01:35]} 21... Be7 {[%clk
0:01:34.2]} 22. Re2 {[%clk 0:01:23.5]} 22... Bd6 {[%clk 0:01:34.8]} 23. Rbe1
{[%clk 0:01:15.2]} 23... a4 {[%clk 0:01:15.1]} 24. Rb1 {[%clk 0:00:59.9]} 24...
Rg6 {[%clk 0:00:44.4]} 25. Rc2 {[%clk 0:00:18.5]} 25... Qg4 {[%clk 0:00:31.1]}
26. Ne1 {[%clk 0:00:19.3]} 26... Qh5 {[%clk 0:00:08.1]} 27. g3 {[%clk
0:00:11.8]} 1-0

[Event "*** Titled Tuesday 3|2 Blitz"]
[Site "Chess.com"]
[Date "2015.05.05"]
[Round "6"]
[White "jcibarra"]
[Black "NguyenDucHoa"]
[Result "1-0"]
[WhiteElo "2507"]
[BlackElo "2383"]
[TimeControl "180+2"]
[EndTime "12:17:34 PDT"]
[Termination "jcibarra won by resignation"]

1. e4 {[%clk 0:03:01.9]} 1... c5 {[%clk 0:03:00.8]} 2. Nf3 {[%clk 0:03:03.1]}
2... Nc6 {[%clk 0:03:01.5]} 3. d4 {[%clk 0:03:02.4]} 3... cxd4 {[%clk
0:03:03.4]} 4. Nxd4 {[%clk 0:03:03.8]} 4... Qb6 {[%clk 0:03:04.7]} 5. Nb3 {[%clk
0:03:03.3]} 5... Nf6 {[%clk 0:03:05.9]} 6. Nc3 {[%clk 0:03:04.4]} 6... e6 {[%clk
0:03:07.3]} 7. Bf4 {[%clk 0:03:05.4]} 7... Bb4 {[%clk 0:02:58]} 8. Bd3 {[%clk
0:02:46.7]} 8... d5 {[%clk 0:02:54]} 9. exd5 {[%clk 0:02:33]} 9... Nxd5 {[%clk
0:02:54.6]} 10. Bd2 {[%clk 0:02:34.5]} 10... Nxc3 {[%clk 0:02:52.8]} 11. bxc3
{[%clk 0:02:35.2]} 11... Bd6 {[%clk 0:02:48.9]} 12. O-O {[%clk 0:02:25]} 12...
Qc7 {[%clk 0:02:50]} 13. Qh5 {[%clk 0:02:23.1]} 13... b6 {[%clk 0:02:20.3]} 14.
Rae1 {[%clk 0:02:20.6]} 14... g6 {[%clk 0:02:18.7]} 15. Qh6 {[%clk 0:02:19.9]}
15... Bb7 {[%clk 0:02:15.5]} 16. Bg5 {[%clk 0:02:10.2]} 16... Ne5 {[%clk
0:02:03.6]} 17. Bb5+ {[%clk 0:02:03]} 17... Nd7 {[%clk 0:01:44.6]} 18. Qg7
{[%clk 0:01:46.7]} 18... Rf8 {[%clk 0:01:42.5]} 19. Nd4 {[%clk 0:01:41.5]} 19...
e5 {[%clk 0:01:13.1]} 20. f4 {[%clk 0:01:04.9]} 20... e4 {[%clk 0:01:13.9]} 21.
Qxh7 {[%clk 0:00:50.7]} 21... a6 {[%clk 0:01:13.2]} 22. f5 {[%clk 0:00:43.4]}
22... Qxc3 {[%clk 0:00:45.4]} 23. Ne6 {[%clk 0:00:35.7]} 23... Be5 {[%clk
0:00:19.9]} 24. fxg6 {[%clk 0:00:29.9]} 24... Bd4+ {[%clk 0:00:14.4]} 25. Kh1
{[%clk 0:00:29.4]} 25... Bf2 {[%clk 0:00:12.4]} 26. Ng7+ {[%clk 0:00:19.7]}
26... Qxg7 {[%clk 0:00:12.2]} 27. Qxg7 {[%clk 0:00:20.9]} 1-0

[Event "*** Titled Tuesday 3|2 Blitz"]
[Site "Chess.com"]
[Date "2015.05.05"]
[Round "6"]
[White "vinceyoung15"]
[Black "geeeeri"]
[Result "0-1"]
[WhiteElo "2105"]
[BlackElo "2073"]
[TimeControl "180+2"]
[EndTime "12:18:12 PDT"]
[Termination "geeeeri won by resignation"]

1. e4 {[%clk 0:03:01.9]} 1... e6 {[%clk 0:03:00.6]} 2. d4 {[%clk 0:03:02.6]}
2... d5 {[%clk 0:03:01.5]} 3. e5 {[%clk 0:03:00.4]} 3... c5 {[%clk 0:03:01.9]}
4. c3 {[%clk 0:03:00.7]} 4... Nc6 {[%clk 0:03:02.7]} 5. Nf3 {[%clk 0:03:01.9]}
5... Bd7 {[%clk 0:03:02.8]} 6. a3 {[%clk 0:03:02.6]} 6... a5 {[%clk 0:03:03.8]}
7. Bd3 {[%clk 0:03:02]} 7... c4 {[%clk 0:03:04.6]} 8. Bc2 {[%clk 0:03:02.3]}
8... b5 {[%clk 0:03:05.7]} 9. O-O {[%clk 0:03:00.9]} 9... Qb6 {[%clk 0:03:06.5]}
10. Ng5 {[%clk 0:03:01.9]} 10... h6 {[%clk 0:03:03.5]} 11. Qh5 {[%clk
0:03:02.3]} 11... hxg5 {[%clk 0:02:42.8]} 12. Qxh8 {[%clk 0:03:01.7]} 12... Nh6
{[%clk 0:02:42.2]} 13. Bxg5 {[%clk 0:03:01.4]} 13... Nxd4 {[%clk 0:02:28.9]} 14.
cxd4 {[%clk 0:03:00.3]} 14... Qxd4 {[%clk 0:02:29.8]} 15. Nc3 {[%clk 0:02:57.5]}
15... Qxe5 {[%clk 0:01:47.6]} 16. Bxh6 {[%clk 0:02:55.2]} 16... O-O-O {[%clk
0:01:48.3]} 17. Bf4 {[%clk 0:02:55.9]} 17... Qxf4 {[%clk 0:01:46.2]} 18. Qh3
{[%clk 0:02:54.9]} 18... d4 {[%clk 0:01:30.8]} 19. Ne2 {[%clk 0:02:41.7]} 19...
Qe5 {[%clk 0:01:27.5]} 20. Qf3 {[%clk 0:02:41.9]} 20... Kc7 {[%clk 0:01:15.1]}
21. Qg3 {[%clk 0:02:38.1]} 21... Qxg3 {[%clk 0:01:11.3]} 22. Nxg3 {[%clk
0:02:38.1]} 22... d3 {[%clk 0:01:12.5]} 23. Bd1 {[%clk 0:02:39.1]} 23... f5
{[%clk 0:01:05.1]} 24. Rc1 {[%clk 0:02:35.7]} 24... Kb6 {[%clk 0:00:55.3]} 25.
Nh5 {[%clk 0:02:28.4]} 25... e5 {[%clk 0:00:51.3]} 26. Ng3 {[%clk 0:02:18.1]}
26... e4 {[%clk 0:00:51.2]} 27. Bh5 {[%clk 0:02:16.6]} 27... Bc5 {[%clk
0:00:45]} 28. Kh1 {[%clk 0:02:01]} 28... Be6 {[%clk 0:00:41.6]} 29. Bg6 {[%clk
0:02:00.6]} 29... Rf8 {[%clk 0:00:42.2]} 30. Nh5 {[%clk 0:01:53.7]} 30... Bd4
{[%clk 0:00:40.4]} 31. Nf4 {[%clk 0:01:52.5]} 31... Bd7 {[%clk 0:00:40.3]} 32.
Nd5+ {[%clk 0:01:34.2]} 32... Kc5 {[%clk 0:00:40.1]} 33. Nf4 {[%clk 0:01:33.8]}
33... b4 {[%clk 0:00:39.5]} 34. axb4+ {[%clk 0:01:32.6]} 34... axb4 {[%clk
0:00:40.3]} 35. Ra1 {[%clk 0:01:30.6]} 35... Bxb2 {[%clk 0:00:40.8]} 36. Ra5+
{[%clk 0:01:29.8]} 36... Kb6 {[%clk 0:00:41.5]} 37. Rd5 {[%clk 0:01:27.1]} 37...
Bc6 {[%clk 0:00:35.6]} 38. Rxf5 {[%clk 0:01:21.6]} 38... Rd8 {[%clk 0:00:34.8]}
39. Ne6 {[%clk 0:01:05.1]} 39... Rd6 {[%clk 0:00:34.8]} 40. Nf4 {[%clk
0:01:02.2]} 40... c3 {[%clk 0:00:35.8]} 41. Rf8 {[%clk 0:00:47.2]} 41... c2
{[%clk 0:00:34.4]} 42. Rb8+ {[%clk 0:00:48]} 42... Kc7 {[%clk 0:00:32.7]} 43.
Rxb4 {[%clk 0:00:39.2]} 43... d2 {[%clk 0:00:34.2]} 0-1

[Event "*** Titled Tuesday 3|2 Blitz"]
[Site "Chess.com"]
[Date "2015.05.05"]
[Round "6"]
[White "goldaxe"]
[Black "AlmirDzhumaev"]
[Result "1-0"]
[WhiteElo "2161"]
[BlackElo "2071"]
[TimeControl "180+2"]
[EndTime "12:18:14 PDT"]
[Termination "goldaxe won by checkmate"]

1. e4 {[%clk 0:03:01.9]} 1... e5 {[%clk 0:03:00.9]} 2. Nf3 {[%clk 0:03:02.4]}
2... Nc6 {[%clk 0:02:59.8]} 3. Bb5 {[%clk 0:03:02.5]} 3... a6 {[%clk 0:03:01.2]}
4. Ba4 {[%clk 0:03:04]} 4... Nf6 {[%clk 0:03:01.9]} 5. O-O {[%clk 0:03:04.7]}
5... Be7 {[%clk 0:03:03.3]} 6. Re1 {[%clk 0:03:05]} 6... b5 {[%clk 0:03:04.7]}
7. Bb3 {[%clk 0:03:05.9]} 7... O-O {[%clk 0:03:06.6]} 8. h3 {[%clk 0:03:02.4]}
8... d6 {[%clk 0:03:04.4]} 9. c3 {[%clk 0:03:02]} 9... Nb8 {[%clk 0:03:02.7]}
10. d4 {[%clk 0:03:01.2]} 10... Nbd7 {[%clk 0:03:02.2]} 11. Nbd2 {[%clk
0:03:00.9]} 11... Bb7 {[%clk 0:03:03.4]} 12. Bc2 {[%clk 0:03:01.9]} 12... Re8
{[%clk 0:02:59.8]} 13. Nf1 {[%clk 0:03:02.1]} 13... Bf8 {[%clk 0:02:57.9]} 14.
Ng3 {[%clk 0:03:03.5]} 14... g6 {[%clk 0:02:58.9]} 15. Bg5 {[%clk 0:03:01]}
15... h6 {[%clk 0:02:50.2]} 16. Be3 {[%clk 0:03:00]} 16... c5 {[%clk 0:02:50]}
17. Qd2 {[%clk 0:02:53.6]} 17... h5 {[%clk 0:02:49.5]} 18. Bg5 {[%clk
0:02:49.4]} 18... Qb6 {[%clk 0:02:44.5]} 19. d5 {[%clk 0:02:31.1]} 19... Nh7
{[%clk 0:02:36.9]} 20. Bh6 {[%clk 0:02:30]} 20... Be7 {[%clk 0:02:37.9]} 21. Ng5
{[%clk 0:02:17.6]} 21... Ndf6 {[%clk 0:02:31.7]} 22. f4 {[%clk 0:02:11.6]} 22...
c4+ {[%clk 0:02:29]} 23. Kh2 {[%clk 0:02:03.2]} 23... Nxg5 {[%clk 0:02:11.7]}
24. Bxg5 {[%clk 0:01:41.8]} 24... Nh7 {[%clk 0:02:11.2]} 25. Bxe7 {[%clk
0:01:37.1]} 25... Rxe7 {[%clk 0:02:12.4]} 26. f5 {[%clk 0:01:37.7]} 26... Rf8
{[%clk 0:02:08.1]} 27. Qh6 {[%clk 0:01:30.5]} 27... Qf2 {[%clk 0:02:09.1]} 28.
Rf1 {[%clk 0:00:44.4]} 28... Qxc2 {[%clk 0:02:01.8]} 29. Nxh5 {[%clk 0:00:41.9]}
29... gxh5 {[%clk 0:01:58.6]} 30. f6 {[%clk 0:00:40.9]} 30... Nxf6 {[%clk
0:01:55.5]} 31. Rxf6 {[%clk 0:00:40.7]} 31... Rd8 {[%clk 0:01:40.3]} 32. Qg5+
{[%clk 0:00:31.8]} 32... Kf8 {[%clk 0:01:39.4]} 33. Rh6 {[%clk 0:00:31.8]} 33...
Ke8 {[%clk 0:01:37.1]} 34. Qf5 {[%clk 0:00:13.5]} 34... Kf8 {[%clk 0:00:15.4]}
35. Rh8+ {[%clk 0:00:14.2]} 35... Kg7 {[%clk 0:00:16.9]} 36. Qh7+ {[%clk
0:00:14.6]} 36... Kf6 {[%clk 0:00:18.4]} 37. Rf1+ {[%clk 0:00:15.7]} 37... Kg5
{[%clk 0:00:19.9]} 38. Qg7+ {[%clk 0:00:13.2]} 38... Kh4 {[%clk 0:00:21.2]} 39.
Qg3# {[%clk 0:00:13.9]} 1-0

[Event "*** Titled Tuesday 3|2 Blitz"]
[Site "Chess.com"]
[Date "2015.05.05"]
[Round "6"]
[White "Enozen"]
[Black "MinhGTrAn"]
[Result "1-0"]
[WhiteElo "2489"]
[BlackElo "2498"]
[TimeControl "180+2"]
[EndTime "12:18:22 PDT"]
[Termination "Enozen won by resignation"]

1. d4 {[%clk 0:03:01.9]} 1... Nf6 {[%clk 0:02:13]} 2. Bg5 {[%clk 0:03:02.5]}
2... e6 {[%clk 0:02:10.5]} 3. Nd2 {[%clk 0:03:03.2]} 3... Be7 {[%clk 0:02:10.9]}
4. Ngf3 {[%clk 0:03:01.1]} 4... O-O {[%clk 0:02:12.3]} 5. e4 {[%clk 0:02:58.3]}
5... b6 {[%clk 0:02:09.4]} 6. Bd3 {[%clk 0:02:57.7]} 6... Bb7 {[%clk 0:02:10.4]}
7. Qe2 {[%clk 0:02:59.3]} 7... d5 {[%clk 0:01:56.2]} 8. e5 {[%clk 0:03:00.1]}
8... Nfd7 {[%clk 0:01:56.4]} 9. h4 {[%clk 0:02:56]} 9... c5 {[%clk 0:01:56.1]}
10. c3 {[%clk 0:02:57.3]} 10... Nc6 {[%clk 0:01:55.8]} 11. O-O {[%clk
0:02:51.2]} 11... h6 {[%clk 0:01:53]} 12. Bxe7 {[%clk 0:02:48]} 12... Qxe7
{[%clk 0:01:54.9]} 13. Rac1 {[%clk 0:02:49.9]} 13... Rfc8 {[%clk 0:01:54.1]} 14.
a3 {[%clk 0:02:47.5]} 14... Rc7 {[%clk 0:01:55.5]} 15. Bc2 {[%clk 0:02:43.4]}
15... Rac8 {[%clk 0:01:53.9]} 16. Nb3 {[%clk 0:02:35.6]} 16... Ncb8 {[%clk
0:01:45.1]} 17. Qd3 {[%clk 0:02:32.7]} 17... Nf8 {[%clk 0:01:45.4]} 18. Qe3
{[%clk 0:02:34.4]} 18... Ba6 {[%clk 0:01:45.6]} 19. Rfe1 {[%clk 0:02:32.6]}
19... Bb5 {[%clk 0:01:33.8]} 20. h5 {[%clk 0:02:30.7]} 20... Ba4 {[%clk
0:01:22.9]} 21. Nbd2 {[%clk 0:02:26.2]} 21... Bxc2 {[%clk 0:01:18.9]} 22. Rxc2
{[%clk 0:02:28.1]} 22... Nc6 {[%clk 0:01:17.9]} 23. Nb3 {[%clk 0:02:25.2]} 23...
a5 {[%clk 0:01:16.3]} 24. a4 {[%clk 0:02:24.1]} 24... Nd7 {[%clk 0:01:02.5]} 25.
Rf1 {[%clk 0:02:21.4]} 25... cxd4 {[%clk 0:00:57.9]} 26. Nbxd4 {[%clk
0:02:20.6]} 26... Nxd4 {[%clk 0:00:35.7]} 27. Nxd4 {[%clk 0:02:22.5]} 27... Rc4
{[%clk 0:00:37.3]} 28. b3 {[%clk 0:02:21.6]} 28... R4c5 {[%clk 0:00:35.9]} 29.
Nb5 {[%clk 0:02:23.5]} 29... Qg5 {[%clk 0:00:32.8]} 30. Qxg5 {[%clk 0:02:17.5]}
30... hxg5 {[%clk 0:00:33.7]} 31. Re1 {[%clk 0:02:19.4]} 31... Kf8 {[%clk
0:00:29.1]} 32. f3 {[%clk 0:02:17.5]} 32... Ke7 {[%clk 0:00:30.1]} 33. Re3
{[%clk 0:02:18.1]} 33... f6 {[%clk 0:00:24.9]} 34. exf6+ {[%clk 0:02:16.1]}
34... gxf6 {[%clk 0:00:26.8]} 35. Kf2 {[%clk 0:02:18]} 35... Ne5 {[%clk
0:00:23.5]} 36. Rc1 {[%clk 0:02:15.8]} 36... Rxb5 {[%clk 0:00:10.1]} 37. axb5
{[%clk 0:02:15.9]} 37... d4 {[%clk 0:00:11.6]} 38. Rxe5 {[%clk 0:02:10]} 38...
fxe5 {[%clk 0:00:13.5]} 39. c4 {[%clk 0:02:11.9]} 39... Kf6 {[%clk 0:00:11.8]}
40. Ke2 {[%clk 0:02:13.1]} 40... Kf5 {[%clk 0:00:11.5]} 41. Kd3 {[%clk
0:02:03.7]} 41... Rh8 {[%clk 0:00:08.8]} 42. c5 {[%clk 0:02:01.7]} 42... bxc5
{[%clk 0:00:08.2]} 43. Rxc5 {[%clk 0:02:03.6]} 43... Kf4 {[%clk 0:00:09.1]} 44.
b6 {[%clk 0:02:02.9]} 44... Rb8 {[%clk 0:00:08.5]} 45. Rb5 {[%clk 0:02:04.5]}
45... g4 {[%clk 0:00:09.4]} 46. h6 {[%clk 0:02:02.7]} 46... gxf3 {[%clk
0:00:08.4]} 47. gxf3 {[%clk 0:02:04.6]} 47... Kxf3 {[%clk 0:00:09.2]} 48. h7
{[%clk 0:02:05]} 48... e4+ {[%clk 0:00:06.9]} 49. Kd2 {[%clk 0:01:36.5]} 49...
Kf2 {[%clk 0:00:07.4]} 50. Rh5 {[%clk 0:01:34.1]} 50... e3+ {[%clk 0:00:08.3]}
51. Kd3 {[%clk 0:01:35.3]} 51... e5 {[%clk 0:00:04.3]} 52. h8=Q {[%clk
0:01:30.9]} 52... Rxh8 {[%clk 0:00:05.1]} 53. Rxh8 {[%clk 0:01:32.8]} 53... e4+
{[%clk 0:00:04.4]} 54. Kxd4 {[%clk 0:01:29.8]} 54... e2 {[%clk 0:00:05.1]} 55.
Rh2+ {[%clk 0:01:30.7]} 55... Kf3 {[%clk 0:00:04]} 56. Rxe2 {[%clk 0:01:32.3]}
1-0